[Event "EOC-ch Playoff-A 2021"]
[Site "Online"]
[Date "2021.03.29"]
[Round "3.11"]
[White "Wagner, Dennis"]
[Black "Steinberg, Nitzan"]
[Result "1-0"]
[ECO "B52"]
[WhiteElo "2581"]
[BlackElo "2553"]
[Annotator "ChessBase"]
[PlyCount "95"]
[EventDate "2021.03.29"]
[EventType "team-tourn"]
[EventCountry "NET"]
[SourceTitle "playchess.com"]
[Source "ChessBase"]
[SourceQuality "1"]
[TimeControl "900+5"]

1. e4 {[%emt 0:00:00]} c5 {[%emt 0:00:02]} 2. Nf3 {[%emt 0:00:02]} d6 {[%emt 0:00:01]} 3. Bb5+ {[%emt 0:00:01]} Bd7 {[%emt 0:00:02]} 4. c4 {[%emt 0:00:03]} g6 {[%emt 0:00:03]} 5. d4 {[%emt 0:00:02]} cxd4 {[%emt 0:00:05]} 6. Nxd4 {[%emt 0:00:03]} Nf6 {[%emt 0:00:05]} 7. Nc3 {[%emt 0:00:01]} Bg7 {[%emt 0:00:02]} 8. Be3 {[%emt 0:00:05]} O-O {[%emt 0:00:02]} 9. Bxd7 {[%emt 0:00:03]} Nbxd7 {[%emt 0:00:42]} 10. O-O {[%emt 0:00:09]} a6 {[%emt 0:00:17]} 11. Rc1 {[%emt 0:00:22]} Rc8 {[%emt 0:00:02]} 12. b3 {[%emt 0:00:02]} Qa5 {[%emt 0:01:02]} 13. Qe2 {[%emt 0:04:04]} e6 {[%emt 0:00:42]} 14. Bd2 {[%emt 0:01:42]} Rfe8 {[%emt 0:01:47]} 15. Rfd1 {[%emt 0:00:46]} Qe5 {[%emt 0:01:50]} 16. Nf3 {[%emt 0:02:47]} Qh5 {[%emt 0:00:03]} 17. h3 {[%emt 0:00:05]} Ne5 {[%emt 0:01:08]} 18. Nxe5 {[%emt 0:00:28]} Qxe2 {[%emt 0:02:16]} 19. Nxe2 {[%emt 0:00:00]} dxe5 {[%emt 0:00:02]} 20. f3 {[%emt 0:00:16]} Bf8 {[%emt 0:00:28]} 21. b4 {[%emt 0:00:23]} Rc7 {[%emt 0:01:21]} 22. Bc3 {[%emt 0:01:51]} Nd7 {[%emt 0:00:23]} 23. Rd3 {[%emt 0:00:09]} f6 {[%emt 0:00:20]} 24. c5 {[%emt 0:00:27]} b6 {[%emt 0:01:30]} 25. Rcd1 {[%emt 0:00:03]} Re7 {[%emt 0:00:02]} 26. Rd6 {[%emt 0:00:38]} bxc5 {[%emt 0:00:36]} 27. Rxa6 {[%emt 0:00:02]} Rb7 {[%emt 0:00:11]} 28. bxc5 {[%emt 0:00:46]} Nxc5 {[%emt 0:00:02]} 29. Ra8 {[%emt 0:00:03]} Kf7 {[%emt 0:00:02]} 30. a4 {[%emt 0:00:29]} Ra7 {[%emt 0:00:20]} 31. Rdd8 {[%emt 0:00:02]} Bh6 {[%emt 0:00:41]} 32. a5 {[%emt 0:00:03]} Be3+ {[%emt 0:00:39]} 33. Kh2 {[%emt 0:00:02]} Reb7 {[%emt 0:00:07]} 34. h4 {[%emt 0:00:38]} Na6 {[%emt 0:00:33]} 35. Rf8+ {[%emt 0:00:08]} Kg7 {[%emt 0:00:02]} 36. Rg8+ {[%emt 0:00:01]} Kh6 {[%emt 0:00:04]} 37. Raf8 {[%emt 0:00:02]} Rf7 {[%emt 0:00:07]} 38. Rxf7 {[%emt 0:00:11]} Rxf7 {[%emt 0:00:02]} 39. g4 {[%emt 0:00:03]} Ra7 {[%emt 0:00:23]} 40. Kg3 {[%emt 0:00:08]} Nc5 {[%emt 0:00:08]} 41. g5+ {[%emt 0:00:58]} fxg5 {[%emt 0:00:02]} 42. Bxe5 {[%emt 0:00:03]} Rxa5 {[%emt 0:00:07]} 43. Kg4 {[%emt 0:00:08]} Ra7 {[%emt 0:00:05]} 44. Bd6 {[%emt 0:00:12]} Nd7 {[%emt 0:00:04]} 45. hxg5+ {[%emt 0:00:07]} Bxg5 {[%emt 0:00:02]} 46. Kh3 {[%emt 0:00:04]} Nf6 {[%emt 0:00:03]} 47. Bf8+ {[%emt 0:00:03]} Kh5 {[%emt 0:00:03]} 48. Ng3# {[%emt 0:00:02]} 1-0

[Event "EOC-ch Playoff-A 2021"]
[Site "Online"]
[Date "2021.03.29"]
[Round "3.12"]
[White "Huzman, Alexander"]
[Black "Buhmann, Rainer"]
[Result "1/2-1/2"]
[ECO "E08"]
[WhiteElo "2561"]
[BlackElo "2580"]
[Annotator "ChessBase"]
[PlyCount "119"]
[EventDate "2021.03.29"]
[EventType "team-tourn"]
[EventCountry "NET"]
[SourceTitle "playchess.com"]
[Source "ChessBase"]
[SourceQuality "1"]
[TimeControl "900+5"]

1. Nf3 {[%emt 0:00:00]} d5 {[%emt 0:00:02]} 2. g3 {[%emt 0:00:05]} e6 {[%emt 0:00:01]} 3. Bg2 {[%emt 0:00:09]} Nf6 {[%emt 0:00:01]} 4. O-O {[%emt 0:00:04]} Be7 {[%emt 0:00:01]} 5. d4 {[%emt 0:00:14]} O-O {[%emt 0:00:01]} 6. c4 {[%emt 0:00:04]} c6 {[%emt 0:00:01]} 7. Qc2 {[%emt 0:00:02]} b6 {[%emt 0:00:01]} 8. Rd1 {[%emt 0:00:01]} Nbd7 {[%emt 0:00:04]} 9. b3 {[%emt 0:00:05]} Re8 {[%emt 0:00:02]} 10. a4 {[%emt 0:00:21]} a5 {[%emt 0:00:12]} 11. Bb2 {[%emt 0:01:39]} h6 {[%emt 0:00:08]} 12. Nc3 {[%emt 0:00:12]} Ba6 {[%emt 0:00:03]} 13. Nd2 {[%emt 0:00:03]} Qc7 {[%emt 0:00:32]} 14. Rac1 {[%emt 0:00:11]} Rac8 {[%emt 0:00:28]} 15. Qb1 {[%emt 0:00:08]} Qb8 {[%emt 0:00:17]} 16. e4 {[%emt 0:00:07]} dxc4 {[%emt 0:00:10]} 17. Nxc4 {[%emt 0:00:07]} Bxc4 {[%emt 0:00:11]} 18. bxc4 {[%emt 0:00:02]} e5 {[%emt 0:00:02]} 19. Ne2 {[%emt 0:00:11]} Bf8 {[%emt 0:00:37]} 20. h3 {[%emt 0:00:54]} exd4 {[%emt 0:00:10]} 21. Nxd4 {[%emt 0:00:05]} Nc5 {[%emt 0:00:20]} 22. e5 {[%emt 0:00:21]} Qxe5 {[%emt 0:00:27]} 23. Nxc6 {[%emt 0:00:59]} Qg5 {[%emt 0:00:48]} 24. h4 {[%emt 0:02:59]} Qg6 {[%emt 0:00:21]} 25. Qxg6 {[%emt 0:00:03]} fxg6 {[%emt 0:00:02]} 26. Ne5 {[%emt 0:00:03]} Kh7 {[%emt 0:02:24]} 27. Ra1 {[%emt 0:01:13]} Rc7 {[%emt 0:01:30]} 28. Bf3 {[%emt 0:00:18]} Nce4 {[%emt 0:01:24]} 29. Kg2 {[%emt 0:00:39]} Bd6 {[%emt 0:01:34]} 30. Bxe4 {[%emt 0:01:55]} Nxe4 {[%emt 0:00:57]} 31. f4 {[%emt 0:00:03]} Ree7 {[%emt 0:01:02]} 32. Rac1 {[%emt 0:00:17]} Rc8 {[%emt 0:01:10]} 33. Kf3 {[%emt 0:00:28]} Bxe5 {[%emt 0:00:02]} 34. Bxe5 {[%emt 0:00:08]} Nc5 {[%emt 0:00:01]} 35. Bd6 {[%emt 0:00:18]} Rf7 {[%emt 0:00:19]} 36. Bxc5 {[%emt 0:00:04]} Rxc5 {[%emt 0:00:01]} 37. Rd5 {[%emt 0:00:03]} Rc6 {[%emt 0:00:18]} 38. c5 {[%emt 0:00:24]} Rf5 {[%emt 0:00:50]} 39. Ke4 {[%emt 0:00:12]} bxc5 {[%emt 0:01:00]} 40. Rxf5 {[%emt 0:00:16]} gxf5+ {[%emt 0:00:02]} 41. Kd5 {[%emt 0:00:11]} Rb6 {[%emt 0:00:05]} 42. Rxc5 {[%emt 0:00:02]} Rb3 {[%emt 0:00:01]} 43. Rxa5 {[%emt 0:00:02]} Rxg3 {[%emt 0:00:13]} 44. Rb5 {[%emt 0:00:16]} Kg6 {[%emt 0:00:14]} 45. Kc6 {[%emt 0:00:08]} Ra3 {[%emt 0:00:20]} 46. a5 {[%emt 0:00:03]} Kh5 {[%emt 0:00:02]} 47. Rxf5+ {[%emt 0:00:07]} Kxh4 {[%emt 0:00:01]} 48. Kb6 {[%emt 0:00:06]} g5 {[%emt 0:00:05]} 49. a6 {[%emt 0:00:10]} g4 {[%emt 0:00:07]} 50. Rf8 {[%emt 0:00:43]} g3 {[%emt 0:00:16]} 51. Rg8 {[%emt 0:00:19]} Rb3+ {[%emt 0:00:02]} 52. Kc6 {[%emt 0:00:09]} Ra3 {[%emt 0:00:02]} 53. Kb5 {[%emt 0:00:19]} Rb3+ {[%emt 0:00:01]} 54. Ka4 {[%emt 0:00:15]} Rb1 {[%emt 0:00:01]} 55. f5 {[%emt 0:00:02]} Ra1+ {[%emt 0:00:02]} 56. Kb5 {[%emt 0:00:03]} Rb1+ {[%emt 0:00:00]} 57. Kc5 {[%emt 0:00:10]} Ra1 {[%emt 0:00:07]} 58. Kb5 {[%emt 0:00:14]} Rb1+ {[%emt 0:00:01]} 59. Kc5 {[%emt 0:00:13]} Ra1 {[%emt 0:00:02]} 60. Kb5 {[%emt 0:00:01]} 1/2-1/2

[Event "EOC-ch Playoff-A 2021"]
[Site "Online"]
[Date "2021.03.29"]
[Round "4.7"]
[White "Timofeev, Artyom"]
[Black "Wagner, Dennis"]
[Result "1-0"]
[ECO "D83"]
[WhiteElo "2594"]
[BlackElo "2581"]
[Annotator "ChessBase"]
[PlyCount "111"]
[EventDate "2021.03.29"]
[EventType "team-tourn"]
[EventCountry "NET"]
[SourceTitle "playchess.com"]
[Source "ChessBase"]
[SourceQuality "1"]
[TimeControl "900+5"]

1. d4 {[%emt 0:00:00]} Nf6 {[%emt 0:00:02]} 2. c4 {[%emt 0:00:04]} g6 {[%emt 0:00:01]} 3. Nc3 {[%emt 0:00:03]} d5 {[%emt 0:00:01]} 4. Bf4 {[%emt 0:00:03]} Bg7 {[%emt 0:00:02]} 5. e3 {[%emt 0:00:02]} O-O {[%emt 0:00:07]} 6. Rc1 {[%emt 0:00:03]} c5 {[%emt 0:00:51]} 7. dxc5 {[%emt 0:00:06]} Qa5 {[%emt 0:03:54]} 8. cxd5 {[%emt 0:00:37]} Nbd7 {[%emt 0:00:09]} 9. a3 {[%emt 0:01:02]} Ne4 {[%emt 0:03:06]} 10. b4 {[%emt 0:00:45]} Nxc3 {[%emt 0:00:38]} 11. bxa5 {[%emt 0:00:05]} Nxd1 {[%emt 0:00:02]} 12. Kxd1 {[%emt 0:00:09]} Nf6 {[%emt 0:00:01]} 13. Be5 {[%emt 0:01:13]} Nxd5 {[%emt 0:01:44]} 14. Bxg7 {[%emt 0:00:04]} Kxg7 {[%emt 0:00:00]} 15. Bc4 {[%emt 0:00:43]} Be6 {[%emt 0:00:04]} 16. Nf3 {[%emt 0:00:43]} Rac8 {[%emt 0:00:35]} 17. Bxd5 {[%emt 0:00:48]} Bxd5 {[%emt 0:00:03]} 18. Ke2 {[%emt 0:00:01]} Rc7 {[%emt 0:00:13]} 19. Rhd1 {[%emt 0:00:16]} Bxf3+ {[%emt 0:00:37]} 20. Kxf3 {[%emt 0:00:27]} Rfc8 {[%emt 0:00:02]} 21. Rb1 {[%emt 0:00:13]} e6 {[%emt 0:01:45]} 22. g4 {[%emt 0:00:48]} a6 {[%emt 0:00:56]} 23. c6 {[%emt 0:00:04]} Rxc6 {[%emt 0:00:11]} 24. Rxb7 {[%emt 0:00:04]} Rc5 {[%emt 0:00:09]} 25. Rdd7 {[%emt 0:00:09]} Rf8 {[%emt 0:00:02]} 26. Rd6 {[%emt 0:00:16]} Rxa5 {[%emt 0:00:02]} 27. Rxe6 {[%emt 0:00:02]} Rxa3 {[%emt 0:00:08]} 28. Ra7 {[%emt 0:00:04]} a5 {[%emt 0:00:51]} 29. Rea6 {[%emt 0:00:03]} Rb8 {[%emt 0:00:16]} 30. Rxa5 {[%emt 0:00:07]} Rxa5 {[%emt 0:00:00]} 31. Rxa5 {[%emt 0:00:02]} Rb7 {[%emt 0:00:05]} 32. h4 {[%emt 0:00:03]} Rb2 {[%emt 0:00:10]} 33. Kg3 {[%emt 0:00:05]} Rc2 {[%emt 0:00:05]} 34. f3 {[%emt 0:00:21]} Rc3 {[%emt 0:00:07]} 35. Kf4 {[%emt 0:00:04]} Rc4+ {[%emt 0:00:02]} 36. e4 {[%emt 0:00:02]} Rc3 {[%emt 0:00:02]} 37. h5 {[%emt 0:00:06]} Rb3 {[%emt 0:00:20]} 38. Ra7 {[%emt 0:00:15]} Rb1 {[%emt 0:00:20]} 39. h6+ {[%emt 0:00:06]} Kf6 {[%emt 0:00:26]} 40. g5+ {[%emt 0:00:10]} Ke6 {[%emt 0:00:01]} 41. Ra6+ {[%emt 0:00:10]} Ke7 {[%emt 0:00:02]} 42. Ra8 {[%emt 0:00:01]} f6 {[%emt 0:00:12]} 43. Ra7+ {[%emt 0:00:04]} Ke6 {[%emt 0:00:02]} 44. Ra6+ {[%emt 0:00:02]} Ke7 {[%emt 0:00:01]} 45. Rxf6 {[%emt 0:00:03]} Ra1 {[%emt 0:00:03]} 46. Rb6 {[%emt 0:00:04]} Ra7 {[%emt 0:00:02]} 47. Rb8 {[%emt 0:00:03]} Kf7 {[%emt 0:00:04]} 48. Rh8 {[%emt 0:00:03]} Ke6 {[%emt 0:00:01]} 49. Rg8 {[%emt 0:00:02]} Rf7+ {[%emt 0:00:01]} 50. Kg4 {[%emt 0:00:02]} Ra7 {[%emt 0:00:08]} 51. Rg7 {[%emt 0:00:12]} Rxg7 {[%emt 0:00:02]} 52. hxg7 {[%emt 0:00:02]} Kf7 {[%emt 0:00:01]} 53. Kf4 {[%emt 0:00:01]} Kxg7 {[%emt 0:00:01]} 54. Ke5 {[%emt 0:00:02]} h5 {[%emt 0:00:05]} 55. gxh6+ {[%emt 0:00:02]} Kxh6 {[%emt 0:00:00]} 56. Kf6 {[%emt 0:00:02]} 1-0

[Event "EOC-ch Playoff-A 2021"]
[Site "Online"]
[Date "2021.03.29"]
[Round "4.8"]
[White "Buhmann, Rainer"]
[Black "Sharafiev, Azat"]
[Result "1-0"]
[ECO "E61"]
[WhiteElo "2580"]
[BlackElo "2432"]
[Annotator "ChessBase"]
[PlyCount "77"]
[EventDate "2021.03.29"]
[EventType "team-tourn"]
[EventCountry "NET"]
[SourceTitle "playchess.com"]
[Source "ChessBase"]
[SourceQuality "1"]
[TimeControl "900+5"]

1. d4 {[%emt 0:00:00]} Nf6 {[%emt 0:00:03]} 2. Nf3 {[%emt 0:00:03]} g6 {[%emt 0:00:08]} 3. c4 {[%emt 0:00:01]} Bg7 {[%emt 0:00:01]} 4. e3 {[%emt 0:00:01]} O-O {[%emt 0:00:03]} 5. Be2 {[%emt 0:00:01]} c5 {[%emt 0:00:02]} 6. d5 {[%emt 0:00:03]} e6 {[%emt 0:00:02]} 7. Nc3 {[%emt 0:00:02]} d6 {[%emt 0:00:03]} 8. O-O {[%emt 0:00:05]} exd5 {[%emt 0:00:02]} 9. cxd5 {[%emt 0:00:01]} Bg4 {[%emt 0:00:01]} 10. h3 {[%emt 0:00:04]} Bxf3 {[%emt 0:00:03]} 11. Bxf3 {[%emt 0:00:00]} Re8 {[%emt 0:00:04]} 12. Bd2 {[%emt 0:00:07]} Nbd7 {[%emt 0:00:13]} 13. a4 {[%emt 0:00:16]} a6 {[%emt 0:01:14]} 14. Rb1 {[%emt 0:00:21]} Rb8 {[%emt 0:00:27]} 15. Qc2 {[%emt 0:00:55]} Qc7 {[%emt 0:00:41]} 16. Rfc1 {[%emt 0:00:10]} b5 {[%emt 0:00:24]} 17. axb5 {[%emt 0:00:05]} axb5 {[%emt 0:00:02]} 18. b4 {[%emt 0:00:03]} c4 {[%emt 0:00:04]} 19. Ra1 {[%emt 0:00:10]} Ne5 {[%emt 0:02:22]} 20. Be2 {[%emt 0:00:11]} g5 {[%emt 0:00:36]} 21. Qf5 {[%emt 0:00:39]} h6 {[%emt 0:00:04]} 22. Ra5 {[%emt 0:00:14]} Rb6 {[%emt 0:00:39]} 23. Nxb5 {[%emt 0:01:54]} Qb7 {[%emt 0:00:31]} 24. Na3 {[%emt 0:03:15]} Rxb4 {[%emt 0:03:11]} 25. Bxb4 {[%emt 0:00:34]} Qxb4 {[%emt 0:00:03]} 26. Ra7 {[%emt 0:00:41]} c3 {[%emt 0:00:38]} 27. Nb5 {[%emt 0:00:32]} Nxd5 {[%emt 0:00:32]} 28. Nc7 {[%emt 0:03:03]} Qb6 {[%emt 0:03:15]} 29. Nxe8 {[%emt 0:00:17]} Qxa7 {[%emt 0:00:02]} 30. Nxg7 {[%emt 0:00:54]} Kxg7 {[%emt 0:00:50]} 31. Qc2 {[%emt 0:00:18]} Qd7 {[%emt 0:01:05]} 32. Qe4 {[%emt 0:01:11]} Qe6 {[%emt 0:00:10]} 33. Qd4 {[%emt 0:00:09]} Kg8 {[%emt 0:00:04]} 34. Ra1 {[%emt 0:00:33]} f6 {[%emt 0:00:06]} 35. Bc4 {[%emt 0:00:12]} Nxc4 {[%emt 0:00:04]} 36. Qxc4 {[%emt 0:00:02]} Qe5 {[%emt 0:00:06]} 37. Rd1 {[%emt 0:00:24]} Kg7 {[%emt 0:00:02]} 38. Rxd5 {[%emt 0:00:05]} c2 {[%emt 0:00:04]} 39. Rxe5 {[%emt 0:00:03]} 1-0

[Event "EOC-ch Playoff-A 2021"]
[Site "Online"]
[Date "2021.03.29"]
[Round "4.12"]
[White "Wieczorek, Oskar"]
[Black "Hamdouchi, Hicham"]
[Result "0-1"]
[ECO "B30"]
[WhiteElo "2498"]
[BlackElo "2561"]
[Annotator "ChessBase"]
[PlyCount "106"]
[EventDate "2021.03.29"]
[EventType "team-tourn"]
[EventCountry "NET"]
[SourceTitle "playchess.com"]
[Source "ChessBase"]
[SourceQuality "1"]
[TimeControl "900+5"]

1. e4 {[%emt 0:00:00]} c5 {[%emt 0:00:04]} 2. Nf3 {[%emt 0:00:06]} Nc6 {[%emt 0:00:02]} 3. b4 {[%emt 0:00:11]} cxb4 {[%emt 0:00:55]} 4. d4 {[%emt 0:00:03]} g6 {[%emt 0:01:09]} 5. d5 {[%emt 0:00:08]} Bg7 {[%emt 0:00:07]} 6. c3 {[%emt 0:00:06]} Ne5 {[%emt 0:00:45]} 7. Nd4 {[%emt 0:01:38]} d6 {[%emt 0:00:04]} 8. Qa4+ {[%emt 0:04:12]} Nd7 {[%emt 0:00:40]} 9. Qxb4 {[%emt 0:01:14]} Ngf6 {[%emt 0:00:13]} 10. f3 {[%emt 0:00:05]} O-O {[%emt 0:00:08]} 11. Be2 {[%emt 0:00:01]} Nc5 {[%emt 0:00:58]} 12. O-O {[%emt 0:00:04]} Nfd7 {[%emt 0:00:04]} 13. Be3 {[%emt 0:00:10]} Ne5 {[%emt 0:00:12]} 14. Nd2 {[%emt 0:00:17]} f5 {[%emt 0:01:18]} 15. exf5 {[%emt 0:00:34]} gxf5 {[%emt 0:00:09]} 16. f4 {[%emt 0:00:58]} Ned7 {[%emt 0:02:08]} 17. Bf3 {[%emt 0:01:09]} Nb6 {[%emt 0:01:00]} 18. N2b3 {[%emt 0:01:42]} Ne4 {[%emt 0:03:26]} 19. Bxe4 {[%emt 0:00:14]} fxe4 {[%emt 0:00:04]} 20. f5 {[%emt 0:02:25]} Nxd5 {[%emt 0:01:08]} 21. Qc4 {[%emt 0:00:04]} e6 {[%emt 0:00:02]} 22. Rae1 {[%emt 0:01:03]} Nxe3 {[%emt 0:00:21]} 23. Rxe3 {[%emt 0:00:03]} d5 {[%emt 0:00:01]} 24. Qe2 {[%emt 0:00:10]} exf5 {[%emt 0:00:02]} 25. Rf4 {[%emt 0:00:15]} Qd6 {[%emt 0:00:58]} 26. Qf2 {[%emt 0:00:08]} Bd7 {[%emt 0:00:11]} 27. Nxf5 {[%emt 0:00:04]} Bxf5 {[%emt 0:00:08]} 28. Rxf5 {[%emt 0:00:00]} Rxf5 {[%emt 0:00:03]} 29. Qxf5 {[%emt 0:00:00]} Rf8 {[%emt 0:00:06]} 30. Qh5 {[%emt 0:00:02]} Qf4 {[%emt 0:00:40]} 31. Qe2 {[%emt 0:00:04]} Bh6 {[%emt 0:00:17]} 32. Rg3+ {[%emt 0:00:03]} Kh8 {[%emt 0:00:03]} 33. Rh3 {[%emt 0:00:12]} Bg7 {[%emt 0:00:06]} 34. Rg3 {[%emt 0:00:18]} Be5 {[%emt 0:00:05]} 35. a4 {[%emt 0:00:05]} b6 {[%emt 0:00:03]} 36. a5 {[%emt 0:00:04]} bxa5 {[%emt 0:00:04]} 37. Rh3 {[%emt 0:00:02]} Qf6 {[%emt 0:00:05]} 38. g4 {[%emt 0:00:03]} Qb6+ {[%emt 0:00:04]} 39. Qe3 {[%emt 0:00:03]} Qxb3 {[%emt 0:00:12]} 40. g5 {[%emt 0:00:04]} Qb6 {[%emt 0:00:02]} 41. Qxb6 {[%emt 0:00:09]} axb6 {[%emt 0:00:01]} 42. g6 {[%emt 0:00:00]} Kg7 {[%emt 0:00:02]} 43. gxh7 {[%emt 0:00:02]} Rh8 {[%emt 0:00:02]} 44. Rh5 {[%emt 0:00:01]} Kf6 {[%emt 0:00:02]} 45. Kf2 {[%emt 0:00:03]} a4 {[%emt 0:00:01]} 46. Rh6+ {[%emt 0:00:02]} Ke7 {[%emt 0:00:05]} 47. Rxb6 {[%emt 0:00:00]} Bxc3 {[%emt 0:00:04]} 48. Rb7+ {[%emt 0:00:03]} Kd6 {[%emt 0:00:02]} 49. Ke3 {[%emt 0:00:00]} a3 {[%emt 0:00:04]} 50. Ra7 {[%emt 0:00:02]} Bb2 {[%emt 0:00:02]} 51. Kf4 {[%emt 0:00:00]} Kc5 {[%emt 0:00:02]} 52. Kf5 {[%emt 0:00:02]} Kb6 {[%emt 0:00:02]} 53. Ra4 {[%emt 0:00:02]} Rxh7 {[%emt 0:00:03]} 0-1

[Event "EOC-ch Playoff-A 2021"]
[Site "Online"]
[Date "2021.03.29"]
[Round "5.2"]
[White "Engel, Luis"]
[Black "Gumularz, Szymon"]
[Result "1-0"]
[ECO "C77"]
[WhiteElo "2553"]
[BlackElo "2517"]
[Annotator "ChessBase"]
[PlyCount "97"]
[EventDate "2021.03.29"]
[EventType "team-tourn"]
[EventCountry "NET"]
[SourceTitle "playchess.com"]
[Source "ChessBase"]
[SourceQuality "1"]
[TimeControl "900+5"]

1. e4 {[%emt 0:00:00]} e5 {[%emt 0:00:03]} 2. Nf3 {[%emt 0:00:04]} Nc6 {[%emt 0:00:02]} 3. Bb5 {[%emt 0:00:01]} a6 {[%emt 0:00:02]} 4. Ba4 {[%emt 0:00:01]} Nf6 {[%emt 0:00:04]} 5. d3 {[%emt 0:00:02]} d6 {[%emt 0:00:05]} 6. c3 {[%emt 0:00:02]} g6 {[%emt 0:00:01]} 7. O-O {[%emt 0:00:03]} Bg7 {[%emt 0:00:02]} 8. Re1 {[%emt 0:00:02]} O-O {[%emt 0:00:01]} 9. Nbd2 {[%emt 0:00:02]} h6 {[%emt 0:00:03]} 10. Nf1 {[%emt 0:00:06]} Re8 {[%emt 0:00:02]} 11. h3 {[%emt 0:00:11]} b5 {[%emt 0:00:03]} 12. Bc2 {[%emt 0:00:06]} a5 {[%emt 0:00:02]} 13. d4 {[%emt 0:00:46]} a4 {[%emt 0:00:18]} 14. d5 {[%emt 0:01:26]} Na5 {[%emt 0:00:07]} 15. b3 {[%emt 0:01:31]} axb3 {[%emt 0:00:24]} 16. axb3 {[%emt 0:00:03]} Bd7 {[%emt 0:00:06]} 17. Ne3 {[%emt 0:02:02]} c6 {[%emt 0:00:31]} 18. Ba3 {[%emt 0:01:17]} Nb7 {[%emt 0:01:44]} 19. b4 {[%emt 0:00:52]} Qc7 {[%emt 0:00:52]} 20. Qd2 {[%emt 0:00:42]} cxd5 {[%emt 0:00:41]} 21. Nxd5 {[%emt 0:00:38]} Nxd5 {[%emt 0:00:02]} 22. Qxd5 {[%emt 0:01:31]} Be6 {[%emt 0:00:09]} 23. Qd2 {[%emt 0:00:23]} Rad8 {[%emt 0:00:18]} 24. Bb2 {[%emt 0:00:19]} d5 {[%emt 0:00:10]} 25. Qe2 {[%emt 0:01:12]} Nd6 {[%emt 0:00:55]} 26. exd5 {[%emt 0:00:28]} Bxd5 {[%emt 0:00:03]} 27. Rad1 {[%emt 0:00:11]} Qc6 {[%emt 0:01:32]} 28. h4 {[%emt 0:00:45]} e4 {[%emt 0:04:33]} 29. Nd4 {[%emt 0:00:16]} Qb7 {[%emt 0:00:02]} 30. h5 {[%emt 0:00:27]} g5 {[%emt 0:00:02]} 31. Qg4 {[%emt 0:00:30]} Re5 {[%emt 0:00:44]} 32. f4 {[%emt 0:00:41]} f5 {[%emt 0:00:38]} 33. Qg3 {[%emt 0:00:01]} gxf4 {[%emt 0:00:01]} 34. Qxf4 {[%emt 0:00:00]} Bc4 {[%emt 0:00:37]} 35. Bc1 {[%emt 0:00:15]} Qf7 {[%emt 0:00:02]} 36. Qg3 {[%emt 0:00:07]} Qxh5 {[%emt 0:00:20]} 37. Bf4 {[%emt 0:00:02]} Rd5 {[%emt 0:00:01]} 38. Ne6 {[%emt 0:00:11]} Ne8 {[%emt 0:00:25]} 39. Nxd8 {[%emt 0:00:06]} Kh7 {[%emt 0:00:22]} 40. Rxd5 {[%emt 0:00:04]} Bxd5 {[%emt 0:00:02]} 41. Bd1 {[%emt 0:00:04]} Qg6 {[%emt 0:00:06]} 42. Qxg6+ {[%emt 0:00:04]} Kxg6 {[%emt 0:00:02]} 43. Be2 {[%emt 0:00:08]} Bxc3 {[%emt 0:00:01]} 44. Rd1 {[%emt 0:00:04]} Nf6 {[%emt 0:00:01]} 45. Bxb5 {[%emt 0:00:09]} Bxb4 {[%emt 0:00:02]} 46. Nc6 {[%emt 0:00:06]} Bc5+ {[%emt 0:00:02]} 47. Kh1 {[%emt 0:00:03]} e3 {[%emt 0:00:04]} 48. Ne5+ {[%emt 0:00:06]} Kh5 {[%emt 0:00:03]} 49. Be2+ {[%emt 0:00:13]} 1-0

[Event "EOC-ch Playoff-A 2021"]
[Site "Online"]
[Date "2021.03.29"]
[Round "5.12"]
[White "Sharafiev, Azat"]
[Black "Steinberg, Nitzan"]
[Result "1-0"]
[ECO "D52"]
[WhiteElo "2432"]
[BlackElo "2553"]
[Annotator "ChessBase"]
[PlyCount "113"]
[EventDate "2021.03.29"]
[EventType "team-tourn"]
[EventCountry "NET"]
[SourceTitle "playchess.com"]
[Source "ChessBase"]
[SourceQuality "1"]
[TimeControl "900+5"]

1. d4 {[%emt 0:00:00]} d5 {[%emt 0:00:02]} 2. c4 {[%emt 0:00:03]} c6 {[%emt 0:00:02]} 3. Nf3 {[%emt 0:00:01]} Nf6 {[%emt 0:00:01]} 4. Nc3 {[%emt 0:00:02]} e6 {[%emt 0:00:02]} 5. Bg5 {[%emt 0:00:02]} Nbd7 {[%emt 0:00:01]} 6. cxd5 {[%emt 0:00:02]} exd5 {[%emt 0:00:01]} 7. e3 {[%emt 0:00:04]} Qa5 {[%emt 0:00:03]} 8. Nd2 {[%emt 0:00:08]} Ne4 {[%emt 0:00:13]} 9. Ndxe4 {[%emt 0:00:10]} dxe4 {[%emt 0:00:01]} 10. Bh4 {[%emt 0:00:02]} Nb6 {[%emt 0:00:48]} 11. Be2 {[%emt 0:00:38]} Bf5 {[%emt 0:00:20]} 12. O-O {[%emt 0:00:08]} Bg6 {[%emt 0:01:11]} 13. Qd2 {[%emt 0:01:09]} Qf5 {[%emt 0:01:07]} 14. d5 {[%emt 0:02:05]} Bc5 {[%emt 0:00:19]} 15. dxc6 {[%emt 0:01:28]} bxc6 {[%emt 0:00:02]} 16. Rac1 {[%emt 0:00:09]} O-O {[%emt 0:00:09]} 17. Rfd1 {[%emt 0:00:05]} Rfe8 {[%emt 0:01:07]} 18. h3 {[%emt 0:00:22]} h5 {[%emt 0:00:03]} 19. Qc2 {[%emt 0:01:17]} Be7 {[%emt 0:01:24]} 20. Bxe7 {[%emt 0:00:26]} Rxe7 {[%emt 0:00:02]} 21. Rd6 {[%emt 0:00:07]} Re6 {[%emt 0:00:28]} 22. Qd2 {[%emt 0:00:24]} Rae8 {[%emt 0:01:05]} 23. Bf1 {[%emt 0:00:55]} Qg5 {[%emt 0:00:55]} 24. Ne2 {[%emt 0:00:51]} Bf5 {[%emt 0:01:39]} 25. Nf4 {[%emt 0:01:08]} Rxd6 {[%emt 0:00:28]} 26. Qxd6 {[%emt 0:00:02]} Bd7 {[%emt 0:00:08]} 27. Rc5 {[%emt 0:00:40]} Qe7 {[%emt 0:00:01]} 28. Qxe7 {[%emt 0:00:15]} Rxe7 {[%emt 0:00:01]} 29. Nxh5 {[%emt 0:00:03]} f6 {[%emt 0:00:45]} 30. Nf4 {[%emt 0:00:15]} Kf7 {[%emt 0:00:31]} 31. Bc4+ {[%emt 0:00:48]} Nxc4 {[%emt 0:00:21]} 32. Rxc4 {[%emt 0:00:01]} Re5 {[%emt 0:00:01]} 33. Ne2 {[%emt 0:00:51]} Ke7 {[%emt 0:00:22]} 34. Nc3 {[%emt 0:00:15]} f5 {[%emt 0:00:10]} 35. b4 {[%emt 0:00:59]} Kd6 {[%emt 0:00:37]} 36. Rd4+ {[%emt 0:00:17]} Kc7 {[%emt 0:00:01]} 37. h4 {[%emt 0:00:10]} Be6 {[%emt 0:00:35]} 38. a3 {[%emt 0:00:40]} c5 {[%emt 0:00:03]} 39. Rd2 {[%emt 0:00:08]} Bb3 {[%emt 0:01:02]} 40. Kh2 {[%emt 0:00:18]} g6 {[%emt 0:00:49]} 41. Kg3 {[%emt 0:00:04]} Kc6 {[%emt 0:00:08]} 42. Kf4 {[%emt 0:00:05]} Re6 {[%emt 0:00:01]} 43. Rd8 {[%emt 0:00:17]} Kc7 {[%emt 0:00:09]} 44. Rd2 {[%emt 0:00:28]} c4 {[%emt 0:00:40]} 45. h5 {[%emt 0:00:08]} gxh5 {[%emt 0:00:02]} 46. Kxf5 {[%emt 0:00:02]} Ra6 {[%emt 0:00:01]} 47. a4 {[%emt 0:00:03]} Bxa4 {[%emt 0:00:38]} 48. b5 {[%emt 0:00:04]} Ra5 {[%emt 0:00:03]} 49. Ra2 {[%emt 0:00:01]} a6 {[%emt 0:00:01]} 50. Rxa4 {[%emt 0:00:19]} Rxa4 {[%emt 0:00:01]} 51. Nxa4 {[%emt 0:00:06]} axb5 {[%emt 0:00:01]} 52. Nc3 {[%emt 0:00:03]} Kc6 {[%emt 0:00:01]} 53. Kxe4 {[%emt 0:00:03]} Kc5 {[%emt 0:00:02]} 54. f4 {[%emt 0:00:04]} b4 {[%emt 0:00:03]} 55. Ne2 {[%emt 0:00:02]} b3 {[%emt 0:00:22]} 56. Nc3 {[%emt 0:00:04]} b2 {[%emt 0:00:03]} 57. Na4+ {[%emt 0:00:05]} 1-0